fUST/lending_fUST_20250803
["ID","MTS","AMOUNT","RATE_DAILY","PERIOD"]
[376955835,1754179849824,-500.0,0.00026873,2]
[376955836,1754179849834,-500.0,0.00026873,2]
[376955837,1754179849843,-496.60693576,0.00026873,2]
[376955838,1754179849852,-500.0,0.00026873,2]
[376955839,1754179849865,-502.2644397,0.00026873,2]
[376955840,1754179849875,-500.0,0.00026873,2]
[376955841,1754179849885,-500.0,0.00026873,2]
[376955842,1754179849895,-500.0,0.00026873,2]
[376955843,1754179849904,-500.0,0.00026873,2]
[376955844,1754179849913,-200.34144845,0.00026873,2]
[376955845,1754179849923,-500.0,0.00026873,2]
[376955846,1754179849932,-195.18191197,0.00026873,2]
[376955847,1754179849942,-500.0,0.00026873,2]
[376955848,1754179849951,-228.636,0.00026891,2]
[376955849,1754179849961,-927.43,0.000269,7]
[376955850,1754179849971,-150.386,0.00026907,2]
[376955851,1754179849981,-150.0,0.00026907,2]
[376955852,1754179849991,-150.0,0.00026907,2]
[376955853,1754179850004,-150.0,0.00026907,2]
[376955854,1754179850014,-243.903,0.00026907,2]
[376955855,1754179850024,-2145.0,0.00026907,2]
[376955856,1754179850034,-970.0,0.00026907,2]
[376955857,1754179850044,-635.0,0.00026907,2]
[376955858,1754179850053,-407.0,0.00026907,2]
[376955859,1754179850063,-150.0,0.00026973,2]
[376955860,1754179850073,-500.0,0.00026973,2]
[376955861,1754179850082,-500.0,0.00026973,2]
[376955862,1754179850092,-500.0,0.00026973,2]
[376955863,1754179850101,-500.0,0.00026973,2]
[376955864,1754179850113,-500.97682814,0.00026973,2]
[376955865,1754179850122,-500.0,0.00026973,2]
[376955866,1754179850132,-185.05189559,0.00026973,2]
[376955867,1754179850141,-502.36331288,0.00026973,2]
[376955868,1754179850150,-500.0,0.00026973,2]
[376955869,1754179850159,-500.0,0.00026973,2]
[376955870,1754179850169,-500.0,0.00026973,2]
[376955871,1754179850178,-500.0,0.00026973,2]
[376955872,1754179850188,-500.0,0.00026973,2]
[376955873,1754179850198,-644.41917488,0.00026973,2]
[376955874,1754179850207,-500.0,0.00026973,2]
[376955875,1754179850216,-838.52257616,0.00026973,2]
[376955876,1754179850226,-2200.0,0.0002699,2]
[376955877,1754179850235,-238.51968945,0.00026999,10]
[376955878,1754179850247,-460.0,0.00026999,10]
[376955879,1754179850263,-460.0,0.00026999,10]
[376955880,1754179850273,-559.51563342,0.00026999,10]
[376955881,1754179850282,-460.0,0.00026999,10]
[376955882,1754179850291,-460.0,0.00026999,10]
[376955883,1754179850301,-460.0,0.00026999,10]
[376955884,1754179850310,-460.0,0.00026999,10]
[376955885,1754179850320,-460.0,0.00026999,10]
[376955886,1754179850329,-460.0,0.00026999,10]
[376955887,1754179850339,-460.0,0.00026999,10]
[376955888,1754179850348,-460.0,0.00026999,10]
[376955889,1754179850357,-561.44062432,0.00026999,10]
[376955890,1754179850367,-698.51,0.00026999,10]
[376955891,1754179850376,-698.51,0.00026999,10]
[376955892,1754179850385,-698.51,0.00026999,10]
[376955893,1754179850395,-698.51,0.00026999,10]
[376955894,1754179850404,-698.51,0.00026999,10]
[376955895,1754179850413,-698.51,0.00026999,10]
[376955896,1754179850422,-698.51,0.00026999,10]
[376955897,1754179850431,-698.52181588,0.00026999,10]
[376955898,1754179850441,-469.61,0.00026999,10]
[376955899,1754179850450,-469.61,0.00026999,10]
[376955900,1754179850460,-469.61,0.00026999,10]
[376955901,1754179850469,-469.61,0.00026999,10]
[376955902,1754179850478,-469.61,0.00026999,10]
[376955903,1754179850488,-469.61,0.00026999,10]
[376955904,1754179850497,-469.61,0.00026999,10]
[376955905,1754179850506,-469.61,0.00026999,10]
[376955906,1754179850515,-469.61,0.00026999,10]
[376955907,1754179850525,-469.61,0.00026999,10]
[376955908,1754179850534,-838.84,0.00026999,10]
[376955909,1754179850544,-838.84,0.00026999,10]
[376955910,1754179850553,-838.84,0.00026999,10]
[376955911,1754179850563,-838.84,0.00026999,10]
[376955912,1754179850572,-838.84,0.00026999,10]
[376955913,1754179850582,-838.84,0.00026999,10]
[376955914,1754179850591,-838.84,0.00026999,10]
[376955915,1754179850601,-838.84,0.00026999,10]
[376955916,1754179850611,-838.84,0.00026999,10]
[376955917,1754179850620,-838.84,0.00026999,10]
[376955918,1754179850630,-52851.43977507,0.00027,2]
[376955919,1754179850639,-151.0,0.00027,7]
[376955920,1754179850648,-112060.0,0.00027,2]
[376955921,1754179850658,-7267.5,0.00027,7]
[376955922,1754179850667,-2440.67,0.00027,7]
[376955923,1754179850681,-160.0,0.00027,3]
[376955924,1754179850691,-265.38788583,0.00027,2]
[376955925,1754179850701,-250.0,0.00027,10]
[376955926,1754179850710,-160.0,0.00027013,2]
[376955927,1754179850722,-500.0,0.00027033,2]
[376955928,1754179850732,-231.78110179,0.00027035,2]
[376955929,1754179850742,-500.0,0.00027043,2]
[376955930,1754179850752,-216.27517063,0.00027093,3]
[376955931,1754179850762,-250.0,0.000271,10]
[376955932,1754179850773,-551.9976856,0.00027112,2]
[376955933,1754179850783,-160.0,0.00027115,3]
[376955934,1754179850793,-151.0,0.00027123,10]
[376955935,1754179850803,-199.53248083,0.00027123,10]
[376955936,1754179850812,-151.0,0.00027123,10]
[376955937,1754179850822,-547.0,0.00027123,10]
[376955938,1754179850831,-500.0,0.00027123,10]
[376955939,1754179850841,-151.0,0.00027123,10]
[376955940,1754179850851,-500.0,0.00027123,10]
[376955941,1754179850860,-500.0,0.00027123,10]
[376955942,1754179850878,-325.0,0.00027133,3]
[376955943,1754179850887,-151.0,0.00027151,7]
[376955944,1754179850897,-500.0,0.00027171,2]
[376955945,1754179850907,-500.0,0.0002718,5]
[376955946,1754179850917,-386.629301,0.000272,10]
[376955947,1754179850926,-160.288269,0.00027264,10]
[376955948,1754179850935,-2000.0,0.000273,2]
[376955949,1754179850945,-644.0,0.000273,2]
[376955950,1754179850954,-151.0,0.00027303,7]
[376955951,1754179850964,-231.78110179,0.00027322,2]
[376955952,1754179850974,-338.29154887,0.00027322,2]
[376955953,1754179850984,-198.0,0.00027397,10]
[376955954,1754179850994,-346.18944968,0.00027397,10]
[376955955,1754179851003,-151.0,0.00027397,10]
[376955956,1754179851012,-349.0,0.00027397,10]
[376955957,1754179851022,-500.0,0.00027397,10]
[376955958,1754179851031,-213.21,0.00027397,7]
[376955959,1754179851041,-1000.0,0.00027397,7]
[376955960,1754179851050,-843.0,0.00027397,7]
[376955961,1754179851060,-243.0,0.00027397,7]
[376955962,1754179851071,-272.82312222,0.00027397,2]
[376955963,1754179851085,-469.61,0.00027399,10]
[376955964,1754179851095,-838.84,0.00027399,10]
[376955965,1754179851105,-538.0,0.000274,2]
[376955966,1754179851116,-538.0,0.000274,2]
[376955967,1754179851126,-538.0,0.000274,2]
[376955968,1754179851135,-538.0,0.000274,2]
[376955969,1754179851145,-538.0,0.000274,2]
[376955970,1754179851155,-521.76738508,0.000274,2]
[376955971,1754179851164,-538.0,0.000274,2]
[376955972,1754179851173,-538.0,0.000274,2]
[376955973,1754179851182,-529.88369254,0.000274,2]
[376955974,1754179851192,-538.0,0.000274,2]
[376955975,1754179851202,-264.94184627,0.000274,2]
[376955976,1754179851211,-401.47092314,0.000274,2]
[376955977,1754179851221,-200.73546157,0.000274,2]
[376955978,1754179851230,-151.0,0.000274,2]
[376955979,1754179851239,-160.288269,0.00027403,10]
[376955980,1754179851249,-160.288269,0.0002741,15]
[376955981,1754179851259,-500.0,0.00027421,5]
[376955982,1754179851268,-500.0,0.00027421,5]
[376955983,1754179851278,-503.40990452,0.00027421,5]
[376955984,1754179851287,-1000.0,0.00027421,5]
[376955985,1754179851297,-622.75820574,0.00027421,5]
[376955986,1754179851306,-1000.0,0.00027421,5]
[376955987,1754179851316,-1000.0,0.00027421,5]
[376955988,1754179851325,-909.14410612,0.00027421,5]
[376955989,1754179851334,-151.0,0.00027421,7]
[376955990,1754179851344,-151.0,0.00027454,7]
[376955991,1754179851356,-160.288269,0.00027467,20]
[376955992,1754179851366,-600.0,0.00027473,5]
[376955993,1754179851375,-500.0,0.00027473,5]
[376955994,1754179851385,-150.0,0.00027473,5]
[376955995,1754179851394,-200.0,0.00027473,120]
[376955996,1754179851403,-2135.0,0.0002749,30]
[376955997,1754179851413,-469.61,0.00027499,10]
[376955998,1754179851423,-469.61,0.00027499,10]
[376955999,1754179851432,-469.61,0.00027499,10]
[376956000,1754179851442,-469.61,0.00027499,10]
[376956001,1754179851451,-469.61,0.00027499,10]
[376956002,1754179851461,-838.84,0.00027499,10]
[376956003,1754179851470,-838.84,0.00027499,10]
[376956004,1754179851480,-838.84,0.00027499,10]
[376956005,1754179851489,-838.84,0.00027499,10]
[376956006,1754179851498,-838.84,0.00027499,10]
[376956007,1754179851508,-838.92898644,0.00027499,10]
[376956008,1754179851518,-45089.97851831,0.000275,2]
[376956009,1754179851528,-3999.999999,0.000275,2]
[376956010,1754179851537,-151.0,0.000275,7]
[376956011,1754179851546,-151.0,0.000275,2]
[376956012,1754179851556,-250.0,0.00027521,5]
[376956013,1754179851566,-512.21026257,0.00027521,5]
[376956014,1754179851575,-1000.0,0.00027521,5]
[376956015,1754179851584,-514.4452744,0.00027521,5]
[376956016,1754179851594,-1000.0,0.00027521,5]
[376956017,1754179851604,-260.0,0.00027561,2]
[376956018,1754179851615,-1066.8,0.000276,30]
[376956019,1754179851624,-231.78110179,0.00027608,2]
[376956020,1754179851634,-1742.622874,0.0002762,5]
[376956021,1754179851644,-500.0,0.00027639,30]
[376956022,1754179851653,-500.0,0.00027639,30]
[376956023,1754179851663,-500.0,0.00027639,30]
[376956024,1754179851677,-172.75038961,0.00027639,30]
[376956025,1754179851779,-500.0,0.00027639,30]
[376956026,1754179851789,-500.0,0.00027639,30]
[376956027,1754179851799,-500.0,0.00027639,30]
[376956028,1754179851809,-500.95576365,0.00027639,30]
[376956029,1754179851818,-179.64412037,0.00027639,30]
[376956030,1754179851827,-500.0,0.00027639,30]
[376956031,1754179851836,-500.0,0.00027639,30]
[376956032,1754179851846,-151.0,0.00027639,7]
[376956033,1754179851856,-151.0,0.00027639,7]
[376956034,1754179851867,-151.0,0.00027639,7]
[376956035,1754179851876,-1000.0,0.0002764,5]
[376956036,1754179851886,-225.0548087,0.00027643,30]
[376956037,1754179851895,-1000.0,0.0002766,5]
[376956038,1754179851905,-151.0,0.00027671,10]
[376956039,1754179851914,-500.0,0.00027671,10]
[376956040,1754179851924,-1000.0,0.0002768,5]
[376956041,1754179851934,-1000.0,0.000277,5]
[376956042,1754179851944,-420.0,0.00027705,2]
[376956043,1754179851953,-1000.0,0.0002772,5]
[376956044,1754179851963,-231.57249719,0.00027731,3]
[376956045,1754179851973,-1000.0,0.0002774,5]
[376956046,1754179851983,-1000.0,0.0002776,5]
[376956047,1754179851992,-1000.0,0.0002778,5]
[376956048,1754179852002,-1133.821772,0.0002778,5]
[376956049,1754179852012,-32692.59,0.000278,2]
[376956050,1754179852021,-1000.0,0.000278,5]
[376956051,1754179852031,-1000.0,0.000278,5]
[376956052,1754179852041,-160.288269,0.00027836,2]
[376956053,1754179852051,-1991.56674717,0.00027894,2]
[376956054,1754179852060,-231.78110179,0.00027894,2]
[376956055,1754179852070,-338.29154887,0.00027894,2]
[376956056,1754179852079,-1000.0,0.000279,2]
[376956057,1754179852089,-151.0,0.00027945,10]
[376956058,1754179852098,-1044.0,0.00027958,30]
[376956059,1754179852108,-1500.0,0.00027968,5]
[376956060,1754179852120,-1500.0,0.00027968,5]
[376956061,1754179852130,-206.0,0.0002797,30]
[376956062,1754179852139,-500.0,0.00027973,5]
[376956063,1754179852148,-500.0,0.0002798,5]
[376956064,1754179852157,-151.0,0.00027985,7]
[376956065,1754179852166,-151.0,0.00027985,7]
[376956066,1754179852175,-151.0,0.00027985,7]
[376956067,1754179852184,-151.0,0.00027985,7]
[376956068,1754179852195,-242.52906,0.00027985,7]
[376956069,1754179852204,-242.52906,0.00027985,7]
[376956070,1754179852213,-242.52906,0.00027985,7]
[376956071,1754179852223,-242.52906,0.00027985,7]
[376956072,1754179852232,-242.52906,0.00027985,7]
[376956073,1754179852241,-242.52906,0.00027985,7]
[376956074,1754179852251,-242.52906,0.00027985,7]
[376956075,1754179852260,-242.52906,0.00027985,7]
[376956076,1754179852270,-242.52906,0.00027985,7]
[376956077,1754179852279,-242.52906,0.00027985,7]
[376956078,1754179852288,-242.52906,0.00027985,7]
[376956079,1754179852298,-242.52906,0.00027985,7]
[376956080,1754179852307,-242.52906,0.00027985,7]
[376956081,1754179852317,-242.52906,0.00027985,7]
[376956082,1754179852327,-242.52906,0.00027985,7]
[376956083,1754179852336,-242.52906,0.00027985,7]
[376956084,1754179852345,-242.52906,0.00027985,7]
[376956085,1754179852354,-242.52906,0.00027985,7]
[376956086,1754179852365,-242.52906,0.00027985,7]
[376956087,1754179852375,-242.52905,0.00027985,7]
[376956088,1754179852384,-151.0,0.00027985,7]
[376956089,1754179852393,-151.0,0.00027985,7]
[376956090,1754179852402,-152.889381,0.00027985,7]
[376956091,1754179852412,-151.0,0.00027985,7]
[376956092,1754179852421,-151.0,0.00027985,7]
[376956093,1754179852431,-151.0,0.00027985,7]
[376956094,1754179852441,-151.0,0.00027985,7]
[376956095,1754179852451,-151.0,0.00027985,7]
[376956096,1754179852462,-151.0,0.00027985,7]
[376956097,1754179852472,-151.0,0.00027985,7]
[376956098,1754179852482,-151.0,0.00027985,7]
[376956099,1754179852491,-151.0,0.00027985,7]
[376956100,1754179852500,-151.0,0.00027985,7]
[376956101,1754179852509,-151.0,0.00027985,7]
[376956102,1754179852519,-151.0,0.00027985,7]
[376956103,1754179852528,-151.0,0.00027985,7]
[376956104,1754179852537,-151.0,0.00027985,7]
[376956105,1754179852546,-151.0,0.00027985,7]
[376956106,1754179852555,-151.0,0.00027985,7]
[376956107,1754179852566,-151.0,0.00027985,7]
[376956108,1754179852575,-151.0,0.00027985,7]
[376956109,1754179852585,-250.606031,0.00027985,7]
[376956110,1754179852594,-205.388254,0.00027985,7]
[376956111,1754179852604,-205.388254,0.00027985,7]
[376956112,1754179852614,-205.388254,0.00027985,7]
[376956113,1754179852623,-205.388254,0.00027985,7]
[376956114,1754179852632,-205.388254,0.00027985,7]
[376956115,1754179852642,-205.388254,0.00027985,7]
[376956116,1754179852658,-205.388254,0.00027985,7]
[376956117,1754179852669,-205.388254,0.00027985,7]
[376956118,1754179852682,-205.388254,0.00027985,7]
[376956119,1754179852691,-205.388254,0.00027985,7]
[376956120,1754179852700,-205.388254,0.00027985,7]
[376956121,1754179852709,-205.388254,0.00027985,7]
[376956122,1754179852720,-205.388254,0.00027985,7]
[376956123,1754179852730,-205.388254,0.00027985,7]
[376956124,1754179852739,-205.388254,0.00027985,7]
[376956125,1754179852749,-205.388254,0.00027985,7]
[376956126,1754179852759,-205.388254,0.00027985,7]
[376956127,1754179852769,-205.388254,0.00027985,7]
[376956128,1754179852778,-205.388254,0.00027985,7]
[376956129,1754179852787,-205.388244,0.00027985,7]
[376956130,1754179852797,-151.0,0.00027985,7]
[376956131,1754179852807,-151.0,0.00027985,7]
[376956132,1754179852816,-151.0,0.00027985,7]
[376956133,1754179852825,-151.0,0.00027985,7]
[376956134,1754179852834,-621.65079389,0.00027986,30]
[376956135,1754179852844,-620.08253969,0.00027986,30]
[376956136,1754179852853,-620.00412698,0.00027986,30]
[376956137,1754179852863,-160.288269,0.00027986,30]
[376956138,1754179852872,-1193.31465293,0.0002799,7]
[376956139,1754179852882,-52102.06105067,0.00027994,20]
[376956140,1754179852998,-783.34,0.00026849,10]
[376956141,1754179853008,-783.34,0.00026849,10]
[376956142,1754179853018,-783.34,0.00026849,10]
[376956143,1754179853027,-783.34,0.00026849,10]
[376956144,1754179853037,-783.34,0.00026849,10]
[376956145,1754179853046,-594.800513,0.00026849,10]
[376956146,1754179853062,-188.539487,0.00026849,10]
[376956147,1754179853071,-783.34,0.00026849,10]
[376956148,1754179853080,-151.0,0.000276,2]
[376956149,1754179853089,-152301.97637972,0.00027994,20]
[376956150,1754179853101,-1597.59919671,0.00027994,20]
[376956151,1754179853113,-874.95517256,0.00027994,20]
[376956152,1754179853226,-1712.85228677,0.00024953,2]
[376956153,1754179853235,-151.68384808,0.00026828,2]
[376956154,1754179853245,-500.0,0.00026848,2]
[376956155,1754179853254,-601.01610058,0.00026849,10]
[376956156,1754179853327,-500.0,0.00026848,2]
[376956157,1754179853336,-500.0,0.00026848,2]
[376956158,1754179853346,-500.0,0.00026848,2]
[376956159,1754179853355,-366.98860841,0.00026848,2]
[376956160,1754179853367,-133.01139159,0.00026848,2]
[376956161,1754179853376,-500.0,0.00026848,2]
[376956162,1754179853385,-500.0,0.00026848,2]
[376956163,1754179853394,-224.47999103,0.00026848,2]
[376956164,1754179853404,-182.32389942,0.00026849,10]
[376956165,1754179853413,-244.96884411,0.00026849,10]
[376956166,1754179853428,-538.37115589,0.00026849,10]
[376956167,1754179853438,-783.34,0.00026849,10]
[376956168,1754179853447,-783.34,0.00026849,10]
[376956169,1754179853456,-460.0,0.00026849,10]
[376956170,1754179853465,-783.34,0.00026849,10]
[376956171,1754179853475,-460.0,0.00026849,10]
[376956172,1754179853484,-783.34,0.00026849,10]
[376956173,1754179853493,-783.34,0.00026849,10]
[376956174,1754179853502,-783.34,0.00026849,10]
[376956175,1754179853511,-717.45899606,0.00026849,10]
[376956176,1754179853523,-65.88100394,0.00026849,10]
[376956177,1754179853532,-783.34,0.00026849,10]
[376956178,1754179853541,-783.34,0.00026849,10]
[376956179,1754179853551,-101.14015165,0.00026849,10]
[376956180,1754179853562,-682.37984835,0.00026849,10]
[376956181,1754179853571,-151.0,0.000277,2]
[376956182,1754179853580,-151.0,0.000278,2]
[376956183,1754179853589,-151.0,0.000279,2]
[376956184,1754179853598,-62691.00885846,0.00027994,20]
[376956185,1754179853610,-15993.04135477,0.00027994,20]
[376972981,1754180200919,200.0,0.00026906,120]
[376972982,1754180371831,200.0,0.0002665,120]
[376972983,1754180491861,200.0,0.00027092,120]
[376972987,1754180731094,-1619.3314522,0.00023453,2]
[376972989,1754180791319,200.0,0.000273,120]
[376972990,1754180810093,-179.20052801,0.00023453,2]
[376972991,1754180834100,-198.79947199,0.00023453,2]
[376972992,1754180834129,-881.08,0.00023453,2]
[376972993,1754180834151,-416.39374804,0.00023509,2]
[376972994,1754180912943,680.48411657,0.00021,10]
[376972996,1754180923343,1009.05285987,0.000225,2]
[376972997,1754180961202,187.647905,0.00013699,2]
[376972998,1754180961438,187.647905,0.00020187,2]
[376973000,1754181013338,806.87,0.00022762,2]
[376973063,1754181032760,-806.87,0.0002347,2]
[376973065,1754181032770,-150.11246695,0.000235,2]
[376973066,1754181032780,-160.32752468,0.00024,2]
[376973068,1754181032791,-454.89029076,0.00024,2]
[376973069,1754181032802,-500.0,0.00024158,2]
[376973070,1754181032811,-669.85616797,0.00024178,2]
[376973073,1754181032868,-137.01383203,0.00024178,2]
[376973075,1754181032877,-233.325735,0.00024323,2]
[376973099,1754181038436,-129.602265,0.00024323,2]
[376973100,1754181038446,-334.99690367,0.000246,2]
[376973101,1754181038456,-300.0,0.00024649,2]
[376973102,1754181038466,-758.0,0.00024649,2]
[376973103,1754181038475,-300.0,0.00024649,2]
[376973104,1754181038487,-500.0,0.00024649,2]
[376973105,1754181038496,-500.0,0.00024649,2]
[376973106,1754181038505,-162.98323427,0.00024649,2]
[376973107,1754181038515,-500.0,0.00024649,2]
[376973108,1754181038534,-586.27910923,0.00024649,2]
[376973109,1754181038548,-2974.37637445,0.0002465,2]
[376973110,1754181038586,-6351.39635365,0.0002465,2]
[376973111,1754181038597,-37815.54762902,0.0002465,2]
[376973112,1754181038609,-29629.05053657,0.0002465,2]
[376973113,1754181038620,-2759.8226674,0.0002465,2]
[376973114,1754181038631,-3150.08453431,0.0002465,2]
[376973115,1754181038642,-965.91439748,0.0002465,2]
[376973116,1754181038654,-398.73,0.0002465,2]
[376973117,1754181038665,-580.51443761,0.0002465,2]
[376973118,1754181038676,-418.70153219,0.0002465,2]
[376973119,1754181038687,-530.64083125,0.0002465,2]
[376973120,1754181038699,-787.5499999,0.0002465,2]
[376973121,1754181038710,-2260.17805655,0.0002465,2]
[376973131,1754181040621,-279.0616457,0.0002465,2]
[376973138,1754181043627,-1321.95124947,0.0002465,2]
[376973139,1754181043680,-1713.1326343,0.0002465,2]
[376973148,1754181046721,-619.99152765,0.0002465,2]
[376973149,1754181046783,-22729.90505912,0.0002465,2]
[376973150,1754181046796,-119932.17528684,0.0002465,2]
[376973151,1754181046805,-224.64,0.0002465,2]
[376973152,1754181046815,-500.0,0.00024673,2]
[376973153,1754181046826,-7267.5,0.000247,7]
[376973154,1754181046835,-2692.4,0.000247,7]
[376973155,1754181046844,-1047.78,0.000247,7]
[376973156,1754181046853,-150.0,0.00024806,2]
[376973157,1754181046863,-200.0,0.00025,2]
[376973158,1754181046872,-806.87,0.00025,7]
[376973159,1754181046882,-334.99690363,0.00025073,2]
[376973160,1754181046891,-1000.0,0.00025221,2]
[376973161,1754181046901,-2090.49253384,0.00025221,2]
[376973162,1754181046911,-500.0,0.00025283,2]
[376973163,1754181046920,-183.127981,0.00025521,2]
[376973164,1754181046929,-334.99690363,0.00025546,2]
[376973165,1754181046938,-806.87,0.00025593,7]
[376973166,1754181046948,-500.0,0.00025634,2]
[376973167,1754181046958,-223.72,0.00025635,2]
[376973168,1754181046967,-186.412082,0.00025715,2]
[376973169,1754181046976,-231.57249719,0.00025745,2]
[376973170,1754181046986,-409.14410612,0.00025768,2]
[376973171,1754181046995,-1000.0,0.00025796,2]
[376973172,1754181047005,-200.0,0.00025881,15]
[376973173,1754181047015,-300.0,0.00025881,15]
[376973174,1754181047025,-287.7361772,0.00025998,2]
[376973175,1754181047035,-5891.5,0.00026,2]
[376973176,1754181047045,-1656.56829933,0.00026,30]
[376973177,1754181047054,-334.99690363,0.00026019,2]
[376973178,1754181047065,-159.0,0.00026098,2]
[376973179,1754181047074,-806.87,0.00026301,7]
[376973180,1754181047083,-342.0,0.00026319,2]
[376973181,1754181047092,-841.70373825,0.00026344,2]
[376973182,1754181047102,-500.0,0.0002635,2]
[376973183,1754181047111,-287.73617717,0.00026476,2]
[376973184,1754181047120,-334.99690363,0.00026491,2]
[376973185,1754181047129,-187.647905,0.00026676,2]
[376973186,1754181047138,-420.0,0.00026713,2]
[376973187,1754181047147,-370.33956703,0.00026749,2]
[376973188,1754181047157,-2849.73319963,0.0002675,2]
[376973189,1754181047168,-1331.15,0.000268,2]
[376973190,1754181047177,-160.0,0.00026821,2]
[376973191,1754181047187,-150.0,0.00026848,2]
[376973192,1754181047197,-509.94123347,0.00026849,10]
[376973193,1754181047206,-500.0,0.00026849,10]
[376973194,1754181047216,-216.27517063,0.00026856,2]
[376973195,1754181047225,-287.73617717,0.00026954,2]
[376973196,1754181047234,-334.99690363,0.00026964,2]
[376973197,1754181047243,-500.0,0.00026973,2]
[376973198,1754181047254,-185.05189559,0.00026973,2]
[376973199,1754181047263,-500.0,0.00026973,2]
[376973200,1754181047273,-500.0,0.00026973,2]
[376973201,1754181047282,-500.0,0.00026973,2]
[376973202,1754181047293,-500.0,0.00026973,2]
[376973203,1754181047302,-644.41917488,0.00026973,2]
[376973204,1754181047312,-500.0,0.00026973,2]
[376973205,1754181047323,-500.0,0.0002699,5]
[376973206,1754181047333,-970.0,0.00026997,2]
[376973207,1754181047344,-635.0,0.00026997,2]
[376973208,1754181047354,-407.0,0.00026997,2]
[376973209,1754181047364,-266.65335182,0.00026999,2]
[376973210,1754181047375,-112060.0,0.00027,2]
[376973211,1754181047386,-806.87,0.00027008,7]
[376973212,1754181047395,-2200.0,0.00027031,2]
[376973213,1754181047405,-284.21091277,0.00027063,2]
[376973214,1754181047414,-2692.4,0.000271,7]
[376973215,1754181047423,-1047.78,0.000271,7]
[376973216,1754181047432,-500.0,0.00027123,10]
[376973217,1754181047441,-500.0,0.0002719,5]
[376973218,1754181047453,-500.0,0.00027196,2]
[376973219,1754181047463,-500.0,0.00027397,10]
[376973220,1754181047472,-263.8789164,0.00027397,2]
[376973221,1754181047483,-1000.0,0.00027397,7]
[376973222,1754181047495,-500.0,0.00027397,5]
[376973223,1754181047505,-2000.0,0.000274,2]
[376973224,1754181047515,-200.73546156,0.000274,2]
[376973225,1754181047524,-7267.5,0.000274,7]
[376973226,1754181047534,-151.0,0.000274,2]
[376973227,1754181047544,-151.0,0.000274,2]
[376973228,1754181047556,-151.0,0.000274,2]
[376973229,1754181047567,-259.62680295,0.000274,2]
[376973230,1754181047578,-157.775609,0.0002741,15]
[376973231,1754181047588,-287.73617717,0.00027432,2]
[376973232,1754181047598,-334.99690363,0.00027437,2]
[376973233,1754181047608,-500.0,0.00027465,2]
[376973234,1754181047618,-151.0,0.00027465,2]
[376973235,1754181047628,-500.0,0.00027465,2]
[376973236,1754181047638,-151.0,0.000275,7]
[376973237,1754181047647,-4000.0,0.000275,2]
[376973238,1754181047657,-151.0,0.000275,2]
[376973239,1754181047666,-151.0,0.000275,2]
[376973240,1754181047675,-160.0,0.000275,2]
[376973241,1754181047684,-151.0,0.000275,2]
[376973242,1754181047694,-1000.0,0.00027521,5]
[376973243,1754181047703,-514.4452744,0.00027521,5]
[376973244,1754181047712,-500.0,0.0002756,2]
[376973245,1754181047722,-200.0,0.0002759,120]
[376973246,1754181047731,-644.0,0.000276,2]
[376973247,1754181047741,-151.0,0.000276,2]
[376973248,1754181047750,-151.0,0.000276,2]